[Event "Goteborg Open 2024"]
[Site "Goteborgs Schackcentrum, Vegatan 20, Gothenburg, Sweden"]
[Date "2024.08.03"]
[Round "5.13"]
[White "Bergdahl, Daniel"]
[Black "Mohammed, Safian Haj"]
[Result "0-1"]
[TimeControl "15 minutes + 5 seconds per move from move one (Round 1 - 4) / 90 minutes + 30 seconds per move from move one (Round 5 - 8)"]
[WhiteFideId "1780921"]
[BlackFideId "1729276"]
[WhiteElo "1689"]
[BlackElo "1890"]

1. e4 {[%clk 01:30:59]} {[%emt 00:00:01]} c5 {[%clk 01:22:39]} {[%emt
00:08:22]} 2. Nf3 {[%clk 01:31:16]} {[%emt 00:00:12]} Nc6 {[%clk 01:22:00]}
{[%emt 00:01:10]} 3. d4 {[%clk 01:31:35]} {[%emt 00:00:11]} cxd4 {[%clk
01:22:24]} {[%emt 00:00:06]} 4. Nxd4 {[%clk 01:31:57]} {[%emt 00:00:08]} e5
{[%clk 01:22:45]} {[%emt 00:00:08]} 5. Nf3 {[%clk 01:32:16]} {[%emt 00:00:12]}
Nf6 {[%clk 01:21:43]} {[%emt 00:01:32]} 6. Nc3 {[%clk 01:31:29]} {[%emt
00:01:18]} h6 {[%clk 01:21:49]} {[%emt 00:00:23]} 7. Bc4 {[%clk 01:31:47]}
{[%emt 00:00:11]} Bb4 {[%clk 01:21:03]} {[%emt 00:01:17]} 8. O-O {[%clk
01:32:01]} {[%emt 00:00:16]} Bxc3 {[%clk 01:17:54]} {[%emt 00:03:39]} 9. bxc3
{[%clk 01:32:14]} {[%emt 00:00:16]} O-O {[%clk 01:18:06]} {[%emt 00:00:18]} 10.
Re1 {[%clk 01:32:12]} {[%emt 00:00:32]} Na5 {[%clk 01:13:45]} {[%emt 00:04:51]}
11. Bb5 {[%clk 01:30:58]} {[%emt 00:01:45]} a6 {[%clk 01:07:18]} {[%emt
00:06:57]} 12. Ba4 {[%clk 01:30:50]} {[%emt 00:00:37]} Qc7 {[%clk 01:05:08]}
{[%emt 00:02:40]} 13. Ba3 {[%clk 01:30:33]} {[%emt 00:00:47]} Re8 {[%clk
01:03:39]} {[%emt 00:02:01]} 14. Bb4 {[%clk 01:29:30]} {[%emt 00:01:31]} b5
{[%clk 01:02:15]} {[%emt 00:01:54]} 15. Bb3 {[%clk 01:29:26]} {[%emt 00:00:33]}
Bb7 {[%clk 01:01:45]} {[%emt 00:01:02]} 16. Bd5 {[%clk 01:25:57]} {[%emt
00:03:57]} Nc4 {[%clk 00:57:25]} {[%emt 00:04:52]} 17. Bxc4 {[%clk 01:24:10]}
{[%emt 00:02:17]} Qxc4 {[%clk 00:57:18]} {[%emt 00:00:37]} 18. Nd2 {[%clk
01:22:38]} {[%emt 00:02:01]} Qc7 {[%clk 00:55:53]} {[%emt 00:01:55]} 19. Qf3
{[%clk 01:22:15]} {[%emt 00:00:53]} d5 {[%clk 00:55:22]} {[%emt 00:01:01]} 20.
Re3 {[%clk 01:18:16]} {[%emt 00:04:28]} dxe4 {[%clk 00:54:58]} {[%emt
00:00:56]} 21. Qh3 {[%clk 01:18:14]} {[%emt 00:00:31]} Rad8 {[%clk 00:52:10]}
{[%emt 00:03:18]} 22. Rg3 {[%clk 01:16:03]} {[%emt 00:02:41]} Kh7 {[%clk
00:50:29]} {[%emt 00:02:11]} 23. Nb3 {[%clk 01:14:50]} {[%emt 00:01:43]} Qd7
{[%clk 00:50:41]} {[%emt 00:00:18]} 24. Qxd7 {[%clk 01:13:06]} {[%emt
00:02:15]} Nxd7 {[%clk 00:50:14]} {[%emt 00:00:57]} 25. Na5 {[%emt 00:02:07]}
Bd5 {[%clk 00:49:17]} {[%emt 00:00:55]} 26. h3 {[%clk 01:10:40]} {[%emt
00:01:50]} f5 {[%clk 00:48:47]} {[%emt 00:01:00]} 27. Rd1 {[%clk 01:10:28]}
{[%emt 00:00:42]} Nf6 {[%clk 00:44:11]} {[%emt 00:05:07]} 28. Re3 {[%clk
01:09:51]} {[%emt 00:01:07]} Bxa2 {[%clk 00:43:25]} {[%emt 00:01:16]} 29. Rxd8
{[%clk 01:09:14]} {[%emt 00:01:06]} Rxd8 {[%clk 00:43:45]} {[%emt 00:00:09]} 30.
Nc6 {[%clk 01:09:17]} {[%emt 00:00:27]} Rd1+ {[%clk 00:43:06]} {[%emt
00:01:10]} 31. Kh2 {[%clk 01:09:16]} {[%emt 00:00:30]} f4 {[%clk 00:43:23]}
{[%emt 00:00:14]} 32. Re2 {[%clk 01:09:08]} {[%emt 00:00:38]} Bc4 {[%clk
00:43:47]} 0-1

[Event "Goteborg Open 2024"]
[Site "Goteborgs Schackcentrum, Vegatan 20, Gothenburg, Sweden"]
[Date "2024.08.03"]
[Round "5.14"]
[White "Westlund, Tim"]
[Black "Hammar, Arvid"]
[Result "1-0"]
[TimeControl "15 minutes + 5 seconds per move from move one (Round 1 - 4) / 90 minutes + 30 seconds per move from move one (Round 5 - 8)"]
[WhiteFideId "1754718"]
[BlackFideId "1735977"]
[WhiteElo "1886"]
[BlackElo "1653"]

1. e4 {[%clk 01:30:57]} {[%emt 00:00:02]} e5 {[%clk 01:30:44]} {[%emt
00:00:17]} 2. Nf3 {[%clk 01:31:24]} {[%emt 00:00:03]} d5 {[%clk 01:30:41]}
{[%emt 00:00:33]} 3. exd5 {[%clk 01:31:36]} {[%emt 00:00:17]} e4 {[%clk
01:30:37]} {[%emt 00:00:34]} 4. Qe2 {[%clk 01:31:40]} {[%emt 00:00:27]} f5
{[%clk 01:26:47]} {[%emt 00:04:19]} 5. d3 {[%clk 01:27:50]} {[%emt 00:04:20]}
Nf6 {[%clk 01:25:39]} {[%emt 00:01:38]} 6. Nc3 {[%clk 01:26:05]} {[%emt
00:02:16]} Bb4 {[%clk 01:25:15]} {[%emt 00:00:53]} 7. Bd2 {[%clk 01:24:38]}
{[%emt 00:01:57]} O-O {[%clk 01:24:30]} {[%emt 00:01:15]} 8. Nd4 {[%clk
01:23:32]} {[%emt 00:01:37]} Bxc3 {[%clk 01:20:00]} {[%emt 00:05:00]} 9. Bxc3
{[%clk 01:23:05]} {[%emt 00:00:57]} Qxd5 {[%clk 01:19:29]} {[%emt 00:01:00]} 10.
dxe4 {[%clk 01:18:21]} {[%emt 00:05:15]} Nxe4 {[%clk 01:18:41]} {[%emt
00:01:17]} 11. Qc4 {[%clk 01:17:56]} {[%emt 00:00:54]} Nxc3 {[%clk 01:17:59]}
{[%emt 00:01:14]} 12. Qxc3 {[%clk 01:17:58]} {[%emt 00:00:28]} Re8+ {[%clk
01:17:05]} {[%emt 00:01:23]} 13. Be2 {[%clk 01:14:20]} {[%emt 00:04:08]} Qxg2
{[%clk 01:15:30]} {[%emt 00:02:06]} 14. O-O-O {[%clk 01:14:16]} {[%emt
00:00:34]} Nc6 {[%clk 01:14:12]} {[%emt 00:01:48]} 15. Rhg1 {[%clk 01:12:57]}
{[%emt 00:01:48]} Qe4 {[%clk 01:11:51]} {[%emt 00:02:52]} 16. Bc4+ {[%clk
01:09:52]} {[%emt 00:03:34]} Kh8 {[%clk 01:10:30]} {[%emt 00:01:51]} 17. Nxc6
{[%clk 01:10:02]} {[%emt 00:00:21]} Qf4+ {[%clk 01:09:33]} {[%emt 00:01:25]} 18.
Kb1 {[%clk 01:10:28]} {[%emt 00:00:06]} Qh6 {[%clk 01:09:04]} {[%emt 00:00:59]}
19. Nd8 {[%clk 01:08:57]} {[%emt 00:02:00]} Be6 {[%clk 01:07:27]} {[%emt
00:02:08]} 20. Nxe6 {[%clk 01:09:02]} {[%emt 00:00:23]} Re7 {[%clk 01:07:30]}
{[%emt 00:00:28]} 21. Rd8+ {[%clk 01:07:36]} {[%emt 00:01:55]} Rxd8 {[%clk
01:07:13]} {[%emt 00:00:49]} 22. Nxd8 {[%clk 01:07:34]} {[%emt 00:00:31]} Qxh2
{[%clk 01:05:16]} {[%emt 00:02:26]} 23. Rd1 {[%clk 01:07:13]} {[%emt 00:00:41]}
h6 {[%clk 01:04:47]} {[%emt 00:01:11]} 24. Qf3 {[%clk 01:04:09]} {[%emt
00:03:32]} Qe5 {[%clk 01:03:14]} {[%emt 00:02:04]} 25. Nf7+ {[%clk 01:04:26]}
{[%emt 00:00:13]} Rxf7 {[%clk 01:03:19]} {[%emt 00:00:26]} 26. Bxf7 {[%clk
01:04:48]} {[%emt 00:00:06]} g5 {[%clk 01:02:30]} {[%emt 00:01:20]} 27. Qc3
{[%clk 01:04:48]} {[%emt 00:00:31]} 1-0

[Event "Goteborg Open 2024"]
[Site "Goteborgs Schackcentrum, Vegatan 20, Gothenburg, Sweden"]
[Date "2024.08.03"]
[Round "5.15"]
[White "Israelsson, Lukas"]
[Black "Johansson, Eva"]
[Result "0-1"]
[TimeControl "15 minutes + 5 seconds per move from move one (Round 1 - 4) / 90 minutes + 30 seconds per move from move one (Round 5 - 8)"]
[WhiteFideId "1784749"]
[BlackFideId "1724584"]
[WhiteElo "1615"]
[BlackElo "1878"]

1. d4 {[%clk 01:30:51]} {[%emt 00:00:08]} d6 {[%clk 01:30:50]} {[%emt
00:00:10]} 2. c4 {[%clk 01:31:13]} {[%emt 00:00:08]} e5 {[%clk 01:31:09]}
{[%emt 00:00:10]} 3. d5 {[%clk 01:30:50]} {[%emt 00:00:54]} f5 {[%clk
01:30:45]} {[%emt 00:00:51]} 4. Nc3 {[%clk 01:30:17]} {[%emt 00:01:06]} Nf6
{[%clk 01:30:16]} {[%emt 00:00:58]} 5. Bg5 {[%clk 01:30:09]} {[%emt 00:00:37]}
Be7 {[%clk 01:30:36]} {[%emt 00:00:11]} 6. Qc2 {[%clk 01:27:36]} {[%emt
00:03:04]} Nxd5 {[%clk 01:28:14]} {[%emt 00:02:52]} 7. Bxe7 {[%clk 01:24:01]}
{[%emt 00:04:05]} Nxe7 {[%clk 01:28:35]} {[%emt 00:00:10]} 8. e4 {[%clk
01:23:19]} {[%emt 00:01:11]} O-O {[%clk 01:25:09]} {[%emt 00:03:56]} 9. Nf3
{[%clk 01:22:15]} {[%emt 00:01:34]} Nbc6 {[%clk 01:23:50]} {[%emt 00:01:50]} 10.
Rd1 {[%clk 01:22:04]} {[%emt 00:00:39]} fxe4 {[%clk 01:17:18]} {[%emt
00:07:03]} 11. Nxe4 {[%clk 01:08:09]} {[%emt 00:14:25]} Nf5 {[%clk 01:08:42]}
{[%emt 00:09:05]} 12. c5 {[%clk 00:55:50]} {[%emt 00:12:50]} Nfd4 {[%clk
01:00:53]} {[%emt 00:08:14]} 13. Nxd4 {[%clk 00:52:23]} {[%emt 00:04:01]} Nxd4
{[%clk 01:01:00]} {[%emt 00:00:22]} 14. Rxd4 {[%clk 00:47:51]} {[%emt
00:05:03]} exd4 {[%clk 01:01:15]} {[%emt 00:00:16]} 15. h4 {[%clk 00:46:25]}
{[%emt 00:01:55]} d5 {[%clk 00:56:08]} {[%emt 00:05:37]} 16. Ng5 {[%clk
00:46:18]} {[%emt 00:00:37]} Qe7+ {[%clk 00:56:21]} {[%emt 00:00:16]} 17. Kd1
{[%clk 00:46:07]} {[%emt 00:00:39]} Bf5 {[%clk 00:53:15]} {[%emt 00:03:36]} 18.
Bd3 {[%clk 00:45:47]} {[%emt 00:00:54]} Qf6 {[%clk 00:50:34]} {[%emt 00:03:10]}
19. f3 {[%clk 00:40:57]} {[%emt 00:05:21]} Bxd3 {[%clk 00:42:56]} {[%emt
00:08:08]} 20. Qxd3 {[%clk 00:41:15]} {[%emt 00:00:11]} Qf5 {[%clk 00:43:18]}
{[%emt 00:00:03]} 21. Qxf5 {[%clk 00:41:00]} {[%emt 00:00:51]} Rxf5 {[%clk
00:43:47]} {[%emt 00:00:01]} 22. Ne6 {[%clk 00:41:11]} {[%emt 00:00:19]} c6
{[%clk 00:42:49]} {[%emt 00:01:20]} 23. Nxd4 {[%clk 00:40:10]} {[%emt
00:01:38]} Re5 {[%clk 00:41:43]} {[%emt 00:01:35]} 24. Kd2 {[%clk 00:39:37]}
{[%emt 00:01:06]} Rae8 {[%clk 00:40:36]} {[%emt 00:01:34]} 25. g4 {[%clk
00:38:36]} {[%emt 00:01:33]} g6 {[%clk 00:39:30]} {[%emt 00:01:36]} 26. Rf1
{[%clk 00:36:50]} {[%emt 00:02:16]} Rf8 {[%clk 00:37:01]} {[%emt 00:02:58]} 27.
b4 {[%clk 00:35:23]} {[%emt 00:01:57]} Rfe8 {[%clk 00:35:45]} {[%emt 00:01:46]}
28. Rf2 {[%clk 00:33:38]} {[%emt 00:02:15]} Re3 {[%clk 00:32:32]} {[%emt
00:03:41]} 29. Nc2 {[%clk 00:33:34]} {[%emt 00:00:36]} R3e7 {[%clk 00:30:48]}
{[%emt 00:02:12]} 30. Nd4 {[%clk 00:30:36]} {[%emt 00:03:30]} a5 {[%clk
00:29:06]} {[%emt 00:02:13]} 31. bxa5 {[%clk 00:29:38]} {[%emt 00:01:28]} Ra8
{[%clk 00:28:47]} {[%emt 00:00:49]} 32. Nb3 {[%clk 00:29:55]} {[%emt 00:00:13]}
Kf7 {[%clk 00:28:04]} {[%emt 00:01:13]} 33. Kd3 {[%clk 00:28:16]} {[%emt
00:02:09]} Re1 {[%clk 00:25:50]} {[%emt 00:02:40]} 34. Rh2 {[%clk 00:27:30]}
{[%emt 00:01:19]} Rae8 {[%clk 00:25:25]} {[%emt 00:00:51]} 35. Kc3 {[%clk
00:23:59]} {[%emt 00:04:06]} R8e3+ {[%clk 00:24:50]} {[%emt 00:01:04]} 36. Kb4
{[%clk 00:24:17]} {[%emt 00:00:12]} Rxf3 {[%clk 00:23:07]} {[%emt 00:02:13]} 37.
a6 {[%clk 00:23:16]} {[%emt 00:01:33]} bxa6 {[%clk 00:22:33]} {[%emt 00:01:04]}
38. Ka5 {[%clk 00:23:27]} {[%emt 00:00:18]} Ke7 {[%clk 00:21:47]} {[%emt
00:01:10]} 39. Nd4 {[%clk 00:23:18]} {[%emt 00:00:44]} Ra3+ {[%clk 00:16:27]}
{[%emt 00:05:49]} 40. Kb4 {[%clk 00:23:23]} {[%emt 00:00:26]} Rg3 {[%clk
00:15:24]} {[%emt 00:01:12]} 41. Nxc6+ {[%clk 00:23:38]} {[%emt 00:00:36]} Ke8
{[%clk 00:14:14]} {[%emt 00:01:41]} 42. g5 {[%clk 00:23:47]} {[%emt 00:00:21]}
Rb1+ {[%clk 00:13:21]} {[%emt 00:01:22]} 43. Ka4 {[%clk 00:23:45]} {[%emt
00:00:32]} Rc3 {[%clk 00:12:41]} {[%emt 00:00:58]} 44. Re2+ {[%clk 00:23:46]}
{[%emt 00:00:41]} Kf7 {[%clk 00:11:23]} {[%emt 00:01:45]} 45. Ne5+ {[%clk
00:23:41]} {[%emt 00:00:38]} Kg7 {[%clk 00:11:38]} {[%emt 00:00:14]} 46. c6
{[%clk 00:23:18]} {[%emt 00:00:54]} d4 {[%clk 00:11:28]} {[%emt 00:00:40]} 47.
Rd2 {[%clk 00:22:14]} {[%emt 00:01:35]} Rb5 {[%clk 00:11:29]} {[%emt 00:00:27]}
48. Ng4 {[%clk 00:19:24]} {[%emt 00:03:21]} Rd5 {[%clk 00:10:53]} {[%emt
00:01:04]} 49. Rf2 {[%clk 00:17:38]} {[%emt 00:02:18]} Rc4+ {[%clk 00:10:43]}
{[%emt 00:00:41]} 50. Kb3 {[%clk 00:17:10]} {[%emt 00:00:58]} Rxc6 {[%clk
00:10:59]} {[%emt 00:00:14]} 51. Nh6 {[%clk 00:17:14]} {[%emt 00:00:25]} Rd7
{[%clk 00:09:02]} {[%emt 00:02:24]} 52. Ng4 {[%clk 00:16:47]} {[%emt 00:01:01]}
d3 {[%clk 00:08:19]} {[%emt 00:01:13]} 53. Rd2 {[%clk 00:15:49]} {[%emt
00:01:27]} Rb7+ {[%clk 00:07:59]} {[%emt 00:00:50]} 54. Ka3 {[%clk 00:15:26]}
{[%emt 00:00:51]} 0-1

[Event "Goteborg Open 2024"]
[Site "Goteborgs Schackcentrum, Vegatan 20, Gothenburg, Sweden"]
[Date "2024.08.03"]
[Round "5.16"]
[White "Helin, Mikael"]
[Black "Karlsson, Stefan"]
[Result "0-1"]
[TimeControl "15 minutes + 5 seconds per move from move one (Round 1 - 4) / 90 minutes + 30 seconds per move from move one (Round 5 - 8)"]
[WhiteTitle "CM"]
[WhiteFideId "1703838"]
[BlackFideId "1771183"]
[WhiteElo "1937"]
[BlackElo "2042"]

1. e4 {[%clk 01:19:42]} {[%emt 00:11:18]} c5 {[%clk 01:30:50]} {[%emt
00:00:11]} 2. c4 {[%clk 01:19:49]} {[%emt 00:00:22]} Nc6 {[%clk 01:30:45]}
{[%emt 00:00:34]} 3. Nc3 {[%emt 00:00:11]} e6 {[%clk 01:29:24]} {[%emt
00:01:48]} 4. g3 {[%clk 01:19:15]} {[%emt 00:01:27]} Nf6 {[%clk 01:24:57]}
{[%emt 00:04:56]} 5. Bg2 {[%clk 01:18:17]} {[%emt 00:01:29]} d5 {[%clk
01:25:13]} {[%emt 00:00:15]} 6. cxd5 {[%clk 01:13:11]} {[%emt 00:05:35]} exd5
{[%clk 01:25:34]} {[%emt 00:00:09]} 7. Nxd5 {[%clk 01:13:33]} {[%emt 00:00:08]}
Nxd5 {[%clk 01:25:27]} {[%emt 00:00:37]} 8. exd5 {[%clk 01:13:56]} {[%emt
00:00:08]} Nb4 {[%clk 01:24:20]} {[%emt 00:01:36]} 9. a3 {[%clk 01:10:02]}
{[%emt 00:04:24]} Nd3+ {[%clk 01:21:48]} {[%emt 00:03:02]} 10. Kf1 {[%clk
01:10:22]} {[%emt 00:00:09]} Bf5 {[%clk 01:07:23]} {[%emt 00:14:55]} 11. g4
{[%clk 01:04:46]} {[%emt 00:06:07]} Bg6 {[%clk 01:07:13]} {[%emt 00:00:39]} 12.
f4 {[%clk 00:58:54]} {[%emt 00:06:22]} Qh4 {[%clk 01:02:15]} {[%emt 00:05:28]}
13. Qe2+ {[%clk 00:57:06]} {[%emt 00:02:19]} Kd7 {[%clk 00:57:35]} {[%emt
00:05:10]} 14. Nf3 {[%clk 00:37:03]} {[%emt 00:20:33]} Qxg4 {[%clk 00:53:03]}
{[%emt 00:05:01]} 15. Ne5+ {[%clk 00:36:15]} {[%emt 00:01:18]} Nxe5 {[%clk
00:53:26]} {[%emt 00:00:08]} 16. fxe5 {[%clk 00:36:40]} {[%emt 00:00:04]} Qxe2+
17. Kxe2 {[%clk 00:37:08]} Re8 {[%clk 00:49:02]} {[%emt 00:01:20]} 18. d4
{[%clk 00:36:44]} {[%emt 00:00:55]} cxd4 {[%clk 00:49:07]} {[%emt 00:00:25]} 19.
Bf4 {[%clk 00:37:06]} {[%emt 00:00:07]} Bd6 {[%clk 00:44:46]} {[%emt 00:04:52]}
20. Bh3+ {[%clk 00:37:27]} {[%emt 00:00:09]} Kc7 {[%clk 00:42:50]} {[%emt
00:02:23]} 21. Rhc1+ {[%clk 00:34:56]} {[%emt 00:03:04]} Kb6 {[%clk 00:42:26]}
{[%emt 00:00:52]} 22. a4 {[%clk 00:32:58]} {[%emt 00:02:31]} a6 {[%clk
00:38:43]} {[%emt 00:04:13]} 23. b4 {[%clk 00:27:43]} {[%emt 00:05:44]} Bxe5
{[%clk 00:38:02]} {[%emt 00:01:11]} 24. a5+ {[%clk 00:27:52]} {[%emt 00:00:21]}
Ka7 {[%clk 00:38:08]} {[%emt 00:00:23]} 25. Bd2 {[%clk 00:26:10]} {[%emt
00:02:13]} d3+ {[%clk 00:35:01]} {[%emt 00:03:37]} 26. Kf2 {[%clk 00:26:39]}
{[%emt 00:00:01]} Bxa1 {[%clk 00:34:30]} {[%emt 00:01:01]} 27. Be3+ {[%clk
00:24:21]} {[%emt 00:02:47]} Rxe3 {[%clk 00:34:44]} {[%emt 00:00:17]} 28. Kxe3
{[%clk 00:24:50]} {[%emt 00:00:01]} Re8+ {[%clk 00:34:37]} {[%emt 00:00:37]} 29.
Kf3 {[%clk 00:18:41]} {[%emt 00:06:39]} Be4+ {[%clk 00:34:12]} {[%emt
00:00:54]} 30. Kg4 {[%clk 00:13:38]} {[%emt 00:05:34]} Be5 {[%clk 00:34:12]}
{[%emt 00:00:29]} 31. Rd1 {[%clk 00:09:50]} {[%emt 00:04:19]} h5+ {[%clk
00:34:27]} {[%emt 00:00:15]} 0-1

[Event "Goteborg Open 2024"]
[Site "Goteborgs Schackcentrum, Vegatan 20, Gothenburg, Sweden"]
[Date "2024.08.03"]
[Round "5.17"]
[White "Shchetinin, Oleg"]
[Black "Johansson, Stefan"]
[Result "1/2-1/2"]
[TimeControl "15 minutes + 5 seconds per move from move one (Round 1 - 4) / 90 minutes + 30 seconds per move from move one (Round 5 - 8)"]
[WhiteFideId "1740210"]
[BlackFideId "1732242"]
[WhiteElo "1742"]
[BlackElo "1933"]

1. e4 {[%clk 01:30:51]} {[%emt 00:00:08]} c5 {[%clk 01:30:37]} {[%emt
00:00:23]} 2. a3 {[%clk 01:31:13]} {[%emt 00:00:10]} e6 {[%clk 01:30:23]}
{[%emt 00:00:42]} 3. c3 {[%clk 01:30:48]} {[%emt 00:00:55]} d5 {[%clk
01:30:34]} {[%emt 00:00:18]} 4. exd5 {[%clk 01:30:34]} {[%emt 00:00:45]} Qxd5
{[%clk 01:30:32]} {[%emt 00:00:32]} 5. Qf3 {[%clk 01:29:56]} {[%emt 00:01:08]}
Nf6 {[%clk 01:28:07]} {[%emt 00:02:54]} 6. Qxd5 {[%clk 01:27:03]} {[%emt
00:03:24]} Nxd5 {[%clk 01:27:36]} {[%emt 00:00:54]} 7. Nf3 {[%clk 01:26:35]}
{[%emt 00:01:05]} Nc6 {[%clk 01:26:01]} {[%emt 00:02:02]} 8. Bb5 {[%clk
01:24:58]} {[%emt 00:02:10]} Bd7 {[%clk 01:26:18]} {[%emt 00:00:13]} 9. O-O
{[%clk 01:24:56]} {[%emt 00:00:32]} Bd6 {[%clk 01:18:30]} {[%emt 00:08:17]} 10.
Bxc6 {[%clk 01:23:26]} {[%emt 00:02:01]} Bxc6 {[%clk 01:18:50]} {[%emt
00:00:10]} 11. d4 {[%clk 01:23:45]} {[%emt 00:00:11]} O-O {[%clk 01:08:45]}
{[%emt 00:10:35]} 12. dxc5 {[%clk 01:22:52]} {[%emt 00:01:24]} Bxc5 {[%clk
01:09:06]} {[%emt 00:00:08]} 13. Ne5 {[%clk 01:19:03]} {[%emt 00:04:19]} Ba4
{[%clk 01:00:22]} {[%emt 00:09:13]} 14. c4 {[%clk 01:12:33]} {[%emt 00:07:00]}
Nf6 {[%clk 00:56:07]} {[%emt 00:04:44]} 15. Nd2 {[%clk 01:09:56]} {[%emt
00:03:08]} Bc2 {[%clk 00:50:21]} {[%emt 00:06:16]} 16. Ra2 {[%clk 01:04:32]}
{[%emt 00:05:55]} Bf5 {[%clk 00:44:46]} {[%emt 00:06:05]} 17. h3 {[%clk
00:49:58]} {[%emt 00:15:04]} h5 {[%clk 00:43:09]} {[%emt 00:02:06]} 18. b4
{[%clk 00:46:40]} {[%emt 00:03:50]} Bd4 {[%clk 00:34:39]} {[%emt 00:08:59]} 19.
Bb2 {[%clk 00:45:56]} {[%emt 00:01:14]} Bxb2 {[%clk 00:26:45]} {[%emt
00:08:23]} 1/2-1/2

[Event "Goteborg Open 2024"]
[Site "Goteborgs Schackcentrum, Vegatan 20, Gothenburg, Sweden"]
[Date "2024.08.03"]
[Round "5.18"]
[White "Garby, Jacob"]
[Black "Lifmark, Kaspar"]
[Result "0-1"]
[TimeControl "15 minutes + 5 seconds per move from move one (Round 1 - 4) / 90 minutes + 30 seconds per move from move one (Round 5 - 8)"]
[WhiteFideId "1786520"]
[BlackFideId "1742396"]
[WhiteElo "1895"]
[BlackElo "1672"]

1. d4 {[%clk 01:30:58]} Nf6 {[%clk 01:30:49]} {[%emt 00:00:12]} 2. c4 {[%clk
01:31:26]} {[%emt 00:00:02]} c5 {[%clk 01:30:59]} {[%emt 00:00:21]} 3. dxc5
{[%clk 01:30:33]} {[%emt 00:01:22]} e6 {[%clk 01:30:43]} {[%emt 00:00:45]} 4.
b4 {[%clk 01:30:37]} {[%emt 00:00:27]} a5 {[%clk 01:30:41]} {[%emt 00:00:33]} 5.
Qa4 {[%clk 01:25:50]} {[%emt 00:05:17]} Nc6 {[%clk 01:21:04]} {[%emt 00:10:07]}
6. a3 {[%clk 01:23:52]} {[%emt 00:02:27]} Ra7 {[%clk 01:18:03]} {[%emt
00:03:32]} 7. b5 {[%clk 01:22:22]} {[%emt 00:01:59]} Nd4 {[%clk 01:16:28]}
{[%emt 00:02:05]} 8. Be3 {[%clk 01:19:23]} {[%emt 00:03:29]} Bxc5 {[%clk
01:13:49]} {[%emt 00:03:09]} 9. Nc3 {[%clk 01:16:29]} {[%emt 00:03:25]} Ng4
{[%clk 01:07:23]} {[%emt 00:06:55]} 10. Bxd4 {[%clk 01:13:26]} {[%emt
00:03:32]} Bxd4 {[%clk 01:07:35]} {[%emt 00:00:18]} 11. Rc1 {[%clk 01:13:22]}
{[%emt 00:00:35]} Nxf2 {[%clk 01:06:42]} {[%emt 00:01:22]} 12. c5 {[%clk
01:11:35]} {[%emt 00:02:18]} Qh4 {[%clk 01:00:40]} {[%emt 00:06:32]} 13. Qc2
{[%clk 01:08:23]} {[%emt 00:03:42]} Nxh1+ {[%clk 01:00:24]} {[%emt 00:00:46]}
14. Kd2 {[%clk 01:07:08]} {[%emt 00:01:46]} Qf4+ {[%clk 00:57:42]} {[%emt
00:03:10]} 15. Kd3 {[%clk 01:07:19]} 0-1